lending/lending_fUSD_20240705
["ID","MTS","AMOUNT","RATE_DAILY","PERIOD"]
[331308341,1720206838212,-363.0,0.0003015,120]
[331308342,1720206838941,-311.47983495,0.0003015,120]
[331308348,1720206936282,363.0,0.0003015,120]
[331308354,1720206973022,1000.0,0.00026,120]
[331308355,1720206979795,1000.0,0.00026,120]
[331308356,1720206982267,1000.0,0.00026,120]
[331308358,1720207266084,14111.35848,0.00011199,2]
[331308359,1720207343532,1356.21246443,0.00011199,2]
[331308360,1720207445844,80860.87551935,0.00011199,2]
[331308468,1720207670751,227.17477303,0.00011199,2]
[331308471,1720207836202,-155.0,0.00012314,2]
[331308472,1720207836213,-155.0,0.00012314,2]
[331308474,1720207836224,-704.67,0.00012369,2]
[331308476,1720207836234,-227.17477303,0.00013516,2]
[331308478,1720207836244,-1069.94736295,0.00013516,2]
[331308479,1720207836256,-607.49042292,0.00013849,2]
[331308480,1720207836266,-598.2884,0.00013899,2]
[331308481,1720207836279,-318.23554472,0.00013899,2]
[331308482,1720207836289,-978.4295,0.000139,2]
[331308483,1720207836301,-902.96104563,0.00013989,2]
[331308484,1720207836310,-6268.74795075,0.00014,2]
[331308485,1720207836323,-11015.41339183,0.00014,2]
[331308486,1720207836333,-155.0,0.00014,2]
[331308487,1720207836343,-647.15989,0.00014,2]
[331308488,1720207836354,-1000.0,0.000141,2]
[331308489,1720207836363,-499.99,0.000141,2]
[331308490,1720207836374,-854.33,0.000141,2]
[331308491,1720207836384,-854.33,0.000141,2]
[331308492,1720207836394,-854.33,0.000142,2]
[331308493,1720207836404,-419.14,0.000142,2]
[331308494,1720207836415,-418.02,0.000142,2]
[331308495,1720207836426,-1000.0,0.00014204,2]
[331308496,1720207836436,-854.33,0.00014241,2]
[331308497,1720207836447,-250.0,0.00014311,2]
[331308498,1720207836457,-227.23,0.00014343,2]
[331308499,1720207836467,-215.2,0.00014371,2]
[331308500,1720207836476,-1773.43565,0.0001438,2]
[331308501,1720207836486,-500.0,0.00014384,2]
[331308502,1720207836497,-675.21,0.000144,2]
[331308503,1720207836508,-837.28,0.000144,2]
[331308504,1720207836518,-419.14,0.000144,2]
[331308505,1720207836528,-419.14,0.000144,2]
[331308506,1720207836539,-674.85,0.00014408,2]
[331308507,1720207836550,-418.89,0.00014441,2]
[331308508,1720207836561,-3012.3,0.00014498,2]
[331308509,1720207836571,-1411.0,0.000146,2]
[331308510,1720207836582,-704.67,0.00014633,2]
[331308511,1720207836592,-250.0,0.00014653,2]
[331308512,1720207836604,-419.14,0.00014795,2]
[331308513,1720207836615,-419.14,0.00014795,2]
[331308514,1720207836626,-419.14,0.00014795,2]
[331308515,1720207836637,-419.14,0.00014795,2]
[331308516,1720207836648,-419.14,0.00014795,2]
[331308517,1720207836658,-419.14,0.00014795,2]
[331308518,1720207836668,-419.14,0.00014795,2]
[331308519,1720207836678,-150.0,0.00014795,2]
[331308520,1720207836942,-150.0,0.00014795,2]
[331308521,1720207837033,-150.0,0.00014795,2]
[331308522,1720207837043,-150.0,0.00014795,2]
[331308523,1720207837054,-150.0,0.00014795,2]
[331308524,1720207837064,-331.1,0.00014795,2]
[331308525,1720207837074,-150.0,0.00014795,2]
[331308526,1720207837084,-150.0,0.00014795,2]
[331308527,1720207837093,-159.01,0.00014799,2]
[331308528,1720207837103,-500.0,0.00014879,2]
[331308529,1720207837112,-1389.17,0.000149,2]
[331308530,1720207837123,-168.75,0.00014929,2]
[331308531,1720207837133,-350.00174982,0.00014999,2]
[331308532,1720207837144,-491.0,0.00015,2]
[331308533,1720207837154,-169.85882371,0.00015,2]
[331308534,1720207837165,-24653.95106231,0.00015,2]
[331308535,1720207837176,-3968.51084147,0.00015,2]
[331308536,1720207837187,-1773.43565,0.00015,2]
[331308537,1720207837198,-647.15989,0.0001504,2]
[331308538,1720207837208,-153.93,0.00015429,2]
[331308539,1720207837219,-150.0,0.00015616,2]
[331308540,1720207837234,-151.73,0.00015616,2]
[331308541,1720207837245,-150.46,0.00015616,2]
[331308542,1720207837255,-150.0,0.00015616,2]
[331308543,1720207837264,-422.4,0.00015753,2]
[331308544,1720207837278,-419.14,0.00015753,2]
[331308545,1720207837287,-419.14,0.00015753,2]
[331308546,1720207837297,-167.0,0.00015831,2]
[331308547,1720207837309,-1000.0,0.0001598,2]
[331308548,1720207837321,-194.79,0.00016116,2]
[331308549,1720207837331,-169.42,0.00016212,2]
[331308550,1720207837340,-1773.43565,0.0001625,2]
[331308551,1720207837350,-647.15989,0.0001629,2]
[331308552,1720207837361,-150.0,0.00016438,2]
[331308553,1720207837371,-150.67,0.00016438,2]
[331308554,1720207837380,-250.0,0.000166,2]
[331308555,1720207837390,-2358.0,0.000166,2]
[331308556,1720207837400,-220.31,0.00016767,3]
[331308557,1720207837411,-4204.8459,0.00016769,2]
[331308558,1720207837420,-989.79240335,0.00016795,2]
[331308559,1720207837431,-5622.1675,0.00016825,2]
[331308560,1720207837441,-169595.6821,0.00016869,2]
[331308561,1720207837451,-1773.43565,0.0001688,2]
[331308562,1720207837462,-1613.568,0.00016895,2]
[331308563,1720207837472,-376.149,0.00016895,2]
[331308564,1720207837482,-3196.0,0.00016895,2]
[331308565,1720207837492,-1070.0,0.00016895,2]
[331308566,1720207837502,-360.0,0.00016895,2]
[331308567,1720207837513,-1658.0,0.00016895,2]
[331308568,1720207837523,-5177.0,0.00016895,2]
[331308569,1720207837533,-1330.786,0.00016895,2]
[331308570,1720207837548,-5811.0,0.00016895,2]
[331308571,1720207837559,-1556.017,0.00016895,2]
[331308572,1720207837570,-1830.0,0.00016895,2]
[331308573,1720207837580,-291.0,0.00016895,2]
[331308574,1720207837591,-704.67,0.00016897,2]
[331308575,1720207837602,-10000.0,0.00016925,2]
[331308576,1720207837612,-877.30891193,0.00016969,2]
[331308577,1720207837623,-2494.89645951,0.00017,2]
[331308578,1720207837634,-164.9,0.0001726,2]
[331308579,1720207837644,-164.9,0.0001726,2]
[331308580,1720207837655,-300.77,0.0001726,2]
[331308581,1720207837665,-150.0,0.0001726,2]
[331308582,1720207837676,-150.0,0.0001726,2]
[331308583,1720207837686,-150.0,0.0001726,2]
[331308584,1720207837696,-647.1599,0.0001754,2]
[331308585,1720207837707,-989.79240331,0.00017666,2]
[331308586,1720207837717,-198.45,0.00017671,2]
[331308587,1720207837727,-1000.0,0.00017755,2]
[331308588,1720207837738,-211.0,0.00017792,2]
[331308589,1720207837748,-151.477,0.00017792,2]
[331308590,1720207837757,-228.584,0.00017792,2]
[331308591,1720207837767,-198.592,0.00017792,2]
[331308592,1720207837777,-193.746,0.00017792,2]
[331308593,1720207837788,-205.477,0.00017792,2]
[331308594,1720207837798,-150.0,0.00017792,2]
[331308595,1720207837809,-175.45907396,0.00017982,2]
[331308596,1720207837820,-414.02655178,0.00018,2]
[331308597,1720207837832,-150.0,0.00018082,2]
[331308598,1720207837842,-150.0,0.00018082,2]
[331308599,1720207837853,-150.0,0.00018082,2]
[331308600,1720207837864,-164.9,0.00018082,2]
[331308601,1720207837875,-150.0,0.00018082,2]
[331308602,1720207837885,-150.0,0.00018082,2]
[331308603,1720207837896,-150.0,0.00018082,2]
[331308604,1720207837907,-315.65745311,0.00018155,2]
[331308605,1720207837918,-8240.24691847,0.00018155,2]
[331308614,1720207838314,-25399.8,0.00018155,2]
[331308625,1720207841748,-2938.02666027,0.00016895,2]
[331308626,1720207841760,-281.98747775,0.00016895,2]
[331308627,1720207841772,-356.05556895,0.00016895,2]
[331308628,1720207841784,-1059.05184599,0.00016895,2]
[331308630,1720207847789,-749.650178,0.000141,2]
[331308678,1720207849476,-958.099822,0.000141,2]
[331308679,1720207849486,-20173.13444704,0.00016895,2]
[331308680,1720207849502,-166.0,0.00016895,2]
[331308681,1720207849512,-401.051,0.00016895,2]
[331308682,1720207849522,-619.0,0.00016895,2]
[331308683,1720207849532,-477.75024862,0.00016925,2]
[331308684,1720207849541,-1773.43565,0.00018155,2]
[331308685,1720207849551,-53749.95308153,0.00018155,2]
[331308686,1720207849563,-175.45907393,0.00018255,2]
[331308687,1720207849573,-647.15989,0.0001829,2]
[331308688,1720207849583,-151.0,0.00018339,2]
[331308689,1720207849595,-199.85948,0.00018339,2]
[331308690,1720207849606,-151.0,0.00018339,2]
[331308691,1720207849616,-151.0,0.00018339,2]
[331308692,1720207849625,-151.0,0.00018339,2]
[331308693,1720207849635,-151.0,0.00018339,2]
[331308694,1720207849646,-151.0,0.00018339,2]
[331308695,1720207849656,-151.0,0.00018339,2]
[331308696,1720207849665,-151.0,0.00018339,2]
[331308697,1720207849675,-159.01,0.00018499,2]
[331308698,1720207849684,-2600.0,0.000185,6]
[331308699,1720207849695,-151.0,0.00018524,2]
[331308700,1720207849706,-151.0,0.00018524,2]
[331308701,1720207849716,-151.0,0.00018524,2]
[331308702,1720207849725,-151.0,0.00018524,2]
[331308703,1720207849736,-151.0,0.00018524,2]
[331308704,1720207849746,-151.0,0.00018524,2]
[331308705,1720207849755,-151.0,0.00018524,2]
[331308706,1720207849764,-151.0,0.00018524,2]
[331308707,1720207849774,-151.0,0.00018524,2]
[331308708,1720207849784,-151.0,0.00018524,2]
[331308709,1720207849794,-151.0,0.00018524,2]
[331308710,1720207849803,-151.0,0.00018524,2]
[331308711,1720207849814,-151.0,0.00018524,2]
[331308712,1720207849823,-151.0,0.00018524,2]
[331308713,1720207849832,-151.0,0.00018524,2]
[331308714,1720207849842,-151.0,0.00018524,2]
[331308715,1720207849851,-151.0,0.00018524,2]
[331308716,1720207849861,-151.0,0.00018524,2]
[331308717,1720207849870,-151.0,0.00018524,2]
[331308718,1720207849880,-151.825594,0.00018524,2]
[331308719,1720207849889,-151.0,0.00018524,2]
[331308720,1720207849901,-175.45907393,0.00018527,2]
[331308721,1720207849921,-989.79240331,0.00018536,2]
[331308722,1720207849931,-5200.0,0.000186,6]
[331308723,1720207849941,-7800.0,0.000187,6]
[331308724,1720207849950,-151.0,0.00018711,2]
[331308725,1720207849960,-151.131279,0.00018711,2]
[331308726,1720207849970,-151.0,0.00018711,2]
[331308727,1720207849980,-151.0,0.00018711,2]
[331308728,1720207849990,-151.0,0.00018711,2]
[331308729,1720207849999,-151.0,0.00018711,2]
[331308730,1720207850009,-151.0,0.00018711,2]
[331308731,1720207850018,-151.0,0.00018711,2]
[331308732,1720207850027,-151.0,0.00018711,2]
[331308733,1720207850037,-151.0,0.00018711,2]
[331308734,1720207850046,-151.0,0.00018711,2]
[331308735,1720207850056,-151.0,0.00018711,2]
[331308736,1720207850066,-893.08502989,0.000188,2]
[331308737,1720207850076,-399.90842983,0.000188,2]
[331308738,1720207850085,-163.27479303,0.000188,2]
[331308739,1720207850095,-1207.665,0.000188,2]
[331308740,1720207850104,-409.36735534,0.000188,2]
[331308742,1720208172315,169.42,0.0002528,120]
[331308744,1720208285614,206.0809587,0.00011199,2]
[331308745,1720208285911,155.0,0.00011199,2]
[331308765,1720208686234,5382.8324232,0.00011199,2]
[331308767,1720208736146,3393.16408193,0.00011199,2]
[331308769,1720208771608,4000.0,0.0001,2]
[331308928,1720208873796,186.18605603,0.00011199,2]
[331308929,1720208933092,526.2798675,0.00011199,2]
[331308930,1720208940052,173.86944815,0.00011199,2]
[331308931,1720208947628,701.53027605,0.00026,120]
[331308932,1720208950274,3795.21437752,0.00011199,2]
[331308938,1720209032763,-169.52855366,0.00012213,2]
[331308940,1720209032773,-130.56624134,0.00012273,2]
[331308947,1720209033103,-39.72059181,0.00012273,2]
[331308948,1720209033120,-404.78068543,0.00012302,2]
[331308949,1720209033140,-125.02697884,0.00012302,2]
[331308950,1720209033150,-553.0,0.00012313,2]
[331308951,1720209033161,-197.46491076,0.00012714,2]
[331308952,1720209033171,-1065.63315769,0.00013128,2]
[331308953,1720209035358,-442.24491386,0.00013128,2]
[331308956,1720209035369,-518.5213064,0.00013543,2]
[331308957,1720209035391,-155.55088166,0.00013543,2]
[331308959,1720209035400,-618.65,0.00013556,2]
[331308960,1720209035411,-364.45912052,0.00013899,2]
[331308961,1720209035421,-319.60079117,0.00013989,7]
[331308962,1720209035430,-227.17477303,0.00013989,2]
[331308963,1720209035439,-150.0,0.00013999,2]
[331308964,1720209035448,-244.0,0.00013999,2]
[331308965,1720209035457,-8446.02532896,0.00014,2]
[331308966,1720209037848,-26739.197099,0.00014,2]
[331308967,1720209037861,-924.13168688,0.00014,2]
[331308968,1720209038109,155.0,0.00011199,2]
[331309047,1720209040255,-516.24072237,0.00014,2]
[331309059,1720209040512,-1423.28006306,0.00014,2]
[331309060,1720209040524,-1219.78087648,0.00014,2]
[331309235,1720209046378,-1862.9666,0.00014,2]
[331309245,1720209046752,-9930.7546341,0.00014,2]
[331309247,1720209046763,-254.56156589,0.00014,2]
[331309249,1720209046774,-295.76294724,0.00014,2]
[331309251,1720209046785,-283.59,0.00014,2]
[331309253,1720209046797,-4979.91880985,0.00014,2]
[331309351,1720209061609,1000.0,0.00026,120]
[331309352,1720209093050,1000.0,0.00026,120]
[331309353,1720209311960,1013.68864111,0.00011199,2]
[331309354,1720209356866,1147.90157651,0.00011199,2]
[331309355,1720209368266,8785.8597783,0.00011199,2]
[331309357,1720209413817,474.86366289,0.00011199,2]
[331309358,1720209454568,157.52085627,0.00011199,2]
[331309359,1720209482276,451.20366451,0.00011199,2]
[331309360,1720209485809,415.30811642,0.00011199,2]
[331309361,1720209586914,18298.96275783,0.00011199,2]
[331309362,1720209630489,227.17477303,0.00011199,2]
[331309363,1720209660609,227.17477303,0.00011199,2]
[331309364,1720209699622,-666.45,0.00011758,2]
[331309365,1720209699651,-300.0,0.0001202,2]
[331309366,1720209721177,-15914.2477,0.00012021,2]
[331309367,1720209737536,1286.28540471,0.00011758,2]
[331309368,1720209840423,473.82887721,0.00011199,2]
[331309374,1720209943619,285.98048656,0.00011199,2]
[331309378,1720210087555,633.12,0.0001141,2]
[331309395,1720210165154,227.17477303,0.00011199,2]
[331309405,1720210232539,-729.19,0.00013261,2]
[331309406,1720210232549,-394.57,0.00013261,2]
[331309407,1720210232558,-500.0,0.00013281,3]
[331309408,1720210232568,-626.84997478,0.00013286,2]
[331309409,1720210235641,-4424.83270185,0.00013267,2]
[331309410,1720210235653,-1359.48729815,0.00013267,2]
[331309411,1720210235663,-3969.97202106,0.00013286,2]
[331309412,1720210235678,-756.03810701,0.00013286,2]
[331309413,1720210235691,-9871.47989715,0.00013286,2]
[331309414,1720210235701,-150.0,0.00013311,2]
[331309415,1720210235710,-250.0,0.0001333,2]
[331309416,1720210235719,-3226.35,0.00013346,2]
[331309417,1720210235729,-265.34221772,0.00013408,2]
[331309418,1720210235740,-155.0,0.00013472,2]
[331309419,1720210235750,-196.86,0.00013487,2]
[331309420,1720210235760,-12903.11,0.00013487,2]
[331309421,1720210235771,-1000.0,0.00013508,2]
[331309422,1720210235780,-1240.53608958,0.00013516,2]
[331309423,1720210235790,-1240.53608958,0.00013516,2]
[331309424,1720210235801,-526.78,0.00013548,2]
[331309425,1720210235811,-250.0,0.00013556,2]
[331309426,1720210235820,-169.42,0.00013574,2]
[331309427,1720210235829,-299.99,0.00013574,2]
[331309428,1720210235838,-684.90615013,0.00013574,2]
[331309429,1720210235848,-166.14,0.00013576,2]
[331309430,1720210235857,-499.99,0.00013588,2]
[331309431,1720210235866,-633.12,0.00013674,2]
[331309432,1720210235876,-166.14,0.00013693,2]
[331309433,1720210235885,-276.86,0.00013699,2]
[331309434,1720210235895,-169.1,0.00013706,2]
[331309435,1720210235904,-1250.93121007,0.00013736,2]
[331309436,1720210235914,-155.52012646,0.00013802,2]
[331309437,1720210235923,-166.14,0.00013811,2]
[331309438,1720210235933,-227.17477303,0.0001383,2]
[331309439,1720210235942,-265.83049183,0.00013849,2]
[331309440,1720210235951,-2360.43,0.00013851,2]
[331309441,1720210235962,-189.46759,0.0001386,2]
[331309446,1720210236198,-625.64470959,0.00013889,2]
[331309447,1720210236216,-476.10316361,0.00013889,2]
[331309448,1720210236226,-166.14,0.00013929,2]
[331309449,1720210236235,-583.96165751,0.0001397,2]
[331309450,1720210236246,-202.25757491,0.00013999,2]
[331309451,1720210236256,-650.91919934,0.00013999,2]
[331309452,1720210236265,-235.52357085,0.00013999,2]
[331309453,1720210236275,-155.0,0.00013999,2]
[331309454,1720210236284,-15352.74867774,0.00014,2]
[331309455,1720210236293,-166.14,0.00014047,2]
[331309456,1720210236303,-313.84024762,0.00014099,2]
[331309457,1720210236312,-166.14,0.00014165,2]
[331309458,1720210236322,-166.14,0.00014283,2]
[331309460,1720210236331,-186.21,0.00014673,2]
[331309461,1720210236340,-169.17,0.00014676,2]
[331309463,1720210236349,-186.21,0.00014677,2]
[331309465,1720210236359,-186.21,0.00014681,2]
[331309467,1720210236368,-186.21,0.00014685,2]
[331309469,1720210236378,-186.21,0.00014689,2]
[331309470,1720210236389,-186.21,0.00014693,2]
[331309472,1720210236399,-186.21,0.00014696,2]
[331309474,1720210236409,-186.21,0.000147,2]
[331309476,1720210236419,-186.21,0.00014704,2]
[331309478,1720210236429,-186.21,0.00014708,2]
[331309480,1720210236439,-186.21,0.00014712,2]
[331309482,1720210236448,-186.21,0.00014716,2]
[331309484,1720210236457,-186.21,0.0001472,2]
[331309486,1720210236467,-186.21,0.00014724,2]
[331309488,1720210236476,-186.21,0.00014727,2]
[331309490,1720210236485,-186.21,0.00014731,2]
[331309492,1720210236494,-186.21,0.00014735,2]
[331309494,1720210236503,-186.21,0.00014739,2]
[331309496,1720210236512,-186.21,0.00014743,2]
[331309498,1720210236522,-186.21,0.00014747,2]
[331309500,1720210236531,-283.6472,0.000148,2]
[331309502,1720210236541,-181.585,0.000148,2]
[331309504,1720210236550,-1254.7553,0.000149,2]
[331309506,1720210236559,-6463.0961,0.000149,2]
[331309508,1720210236569,-15389.3223,0.000149,2]
[331309510,1720210236580,-53811.0507,0.000149,2]
[331309512,1720210236590,-523.1553,0.000149,2]
[331309514,1720210236599,-1841.8566,0.000149,2]
[331309516,1720210236609,-2124.2951,0.000149,2]
[331309518,1720210236618,-178.25145725,0.000149,2]
[331309520,1720210236627,-151.0,0.000149,2]
[331309522,1720210236636,-151.0,0.000149,2]
[331309524,1720210236645,-151.0,0.000149,2]
[331309526,1720210236654,-151.0,0.000149,2]
[331309528,1720210236663,-212.042568,0.000149,2]
[331309530,1720210236672,-212.042568,0.000149,2]
[331309532,1720210236682,-151.0,0.000149,2]
[331309534,1720210236691,-316.27074558,0.000149,2]
[331309536,1720210236700,-151.0,0.000149,2]
[331309538,1720210236709,-151.0,0.000149,2]
[331309540,1720210236719,-151.0,0.000149,2]
[331309542,1720210236729,-381.937717,0.000149,2]
[331309544,1720210236738,-381.937717,0.000149,2]
[331309546,1720210236748,-880.38912653,0.000149,2]
[331309548,1720210236757,-500.0,0.0001497,2]
[331309550,1720210236766,-172.41,0.0001497,2]
[331309552,1720210236775,-240989.12742776,0.00015,2]
[331309554,1720210236785,-151.0,0.00015,2]
[331309556,1720210236795,-151.0,0.00015,2]
[331309558,1720210236805,-151.0,0.00015,2]
[331309560,1720210236814,-151.0,0.00015,2]
[331309562,1720210236823,-151.0,0.00015,2]
[331309564,1720210236833,-151.0,0.00015,2]
[331309566,1720210236842,-151.0,0.00015,2]
[331309568,1720210236852,-151.0,0.00015,2]
[331309570,1720210236861,-151.0,0.00015,2]
[331309572,1720210236870,-151.0,0.00015,2]
[331309574,1720210236879,-151.0,0.00015,2]
[331309576,1720210236888,-151.948626,0.00015,2]
[331309578,1720210236898,-151.0,0.00015,2]
[331309580,1720210236907,-151.0,0.00015,2]
[331309582,1720210236917,-151.0,0.00015,2]
[331309584,1720210236927,-151.0,0.00015,2]
[331309586,1720210236938,-151.0,0.00015,2]
[331309588,1720210236947,-151.0,0.00015,2]
[331309590,1720210236956,-151.0,0.00015,2]
[331309592,1720210236966,-163.231054,0.00015,2]
[331309594,1720210236975,-151.0,0.00015,2]
[331309596,1720210236984,-151.0,0.00015,2]
[331309598,1720210236996,-151.0,0.00015,2]
[331309600,1720210237006,-151.0,0.00015,2]
[331309603,1720210237036,-151.0,0.00015,2]
[331309604,1720210237061,-151.0,0.00015,2]
[331309605,1720210237075,-151.0,0.00015,2]
[331309606,1720210237084,-151.0,0.00015,2]
[331309607,1720210237096,-151.0,0.00015,2]
[331309608,1720210237107,-179.596016,0.00015,2]
[331309609,1720210237118,-151.0,0.00015,2]
[331309610,1720210237128,-151.0,0.00015,2]
[331309611,1720210237138,-151.0,0.00015,2]
[331309612,1720210237148,-151.0,0.00015,2]
[331309613,1720210237157,-151.0,0.00015,2]
[331309614,1720210237166,-151.0,0.00015,2]
[331309615,1720210237175,-151.0,0.00015,2]
[331309616,1720210237184,-151.0,0.00015,2]
[331309617,1720210237194,-151.0,0.00015,2]
[331309618,1720210237203,-151.0,0.00015,2]
[331309619,1720210237212,-154.787958,0.00015,2]
[331309620,1720210237222,-151.0,0.00015,2]
[331309621,1720210237231,-151.0,0.00015,2]
[331309622,1720210237242,-154.787958,0.00015,2]
[331309623,1720210237254,-151.0,0.00015,2]
[331309624,1720210237264,-151.0,0.00015,2]
[331309625,1720210237273,-151.291124,0.00015,2]
[331309626,1720210237282,-151.0,0.00015,2]
[331309627,1720210237291,-701.458917,0.00015,2]
[331309628,1720210237299,-151.0,0.00015,2]
[331309629,1720210237308,-701.458917,0.00015,2]
[331309630,1720210237318,-151.0,0.00015,2]
[331309631,1720210237327,-151.0,0.00015,2]
[331309632,1720210237336,-151.0,0.00015,2]
[331309633,1720210237345,-151.0,0.00015,2]
[331309634,1720210237355,-151.0,0.00015,2]
[331309635,1720210237364,-151.0,0.00015,2]
[331309636,1720210237374,-151.0,0.00015,2]
[331309637,1720210237384,-379.162844,0.00015,2]
[331309638,1720210237393,-379.162844,0.00015,2]
[331309639,1720210237403,-211.345426,0.00015,2]
[331309640,1720210237412,-151.0,0.00015,2]
[331309641,1720210237423,-151.0,0.00015,2]
[331309642,1720210237432,-211.345426,0.00015,2]
[331309643,1720210237442,-151.0,0.00015,2]
[331309644,1720210237451,-151.0,0.00015,2]
[331309645,1720210237461,-187.507502,0.00015,2]
[331309646,1720210237470,-154.847858,0.00015,2]
[331309647,1720210237479,-251.403773,0.00015,2]
[331309648,1720210237489,-251.403773,0.00015,2]
[331309649,1720210237501,-151.0,0.00015,2]
[331309650,1720210237510,-151.0,0.00015,2]
[331309651,1720210237519,-151.0,0.00015,2]
[331309652,1720210237531,-151.0,0.00015,2]
[331309653,1720210237540,-277.195157,0.00015,2]
[331309654,1720210237550,-151.0,0.00015,2]
[331309655,1720210237559,-151.0,0.00015,2]
[331309656,1720210237569,-151.0,0.00015,2]
[331309657,1720210237579,-151.0,0.00015,2]
[331309658,1720210237589,-151.0,0.00015,2]
[331309659,1720210237598,-151.0,0.00015,2]
[331309660,1720210237608,-151.0,0.00015,2]
[331309661,1720210237617,-151.0,0.00015,2]
[331309662,1720210237627,-151.0,0.00015,2]
[331309663,1720210237636,-151.0,0.00015,2]
[331309664,1720210237646,-151.0,0.00015,2]
[331309665,1720210237656,-151.0,0.00015,2]
[331309666,1720210237665,-5652.687145,0.00015,2]
[331309667,1720210237674,-151.0,0.00015,2]
[331309668,1720210237684,-151.0,0.00015,2]
[331309669,1720210237693,-5652.687145,0.00015,2]
[331309670,1720210237703,-151.0,0.00015,2]
[331309671,1720210237712,-151.0,0.00015,2]
[331309672,1720210237722,-906.12919,0.00015,2]
[331309673,1720210237732,-906.12919,0.00015,2]
[331309674,1720210237741,-151.0,0.00015,2]
[331309675,1720210237772,-153.193925,0.00015,2]
[331309676,1720210237799,-151.0,0.00015,2]
[331309677,1720210237818,-151.740638,0.00015,2]
[331309678,1720210237829,-151.0,0.00015,2]
[331309679,1720210237840,-151.0,0.00015,2]
[331309680,1720210237851,-151.0,0.00015,2]
[331309681,1720210237862,-151.0,0.00015,2]
[331309682,1720210237873,-355.260196,0.00015,2]
[331309683,1720210237883,-355.260196,0.00015,2]
[331309684,1720210237895,-151.0,0.00015,2]
[331309685,1720210237905,-151.0,0.00015,2]
[331309686,1720210237915,-151.0,0.00015,2]
[331309687,1720210237925,-151.0,0.00015,2]
[331309688,1720210237936,-212.042568,0.00015,2]
[331309689,1720210237946,-212.042568,0.00015,2]
[331309690,1720210237956,-212.042568,0.00015,2]
[331309691,1720210237966,-212.042568,0.00015,2]
[331309692,1720210237976,-151.0,0.00015,2]
[331309693,1720210237986,-151.0,0.00015,2]
[331309694,1720210238000,-151.0,0.00015,2]
[331309695,1720210238009,-151.0,0.00015,2]
[331309696,1720210238018,-151.0,0.00015,2]
[331309697,1720210238028,-151.0,0.00015,2]
[331309698,1720210238038,-151.0,0.00015,2]
[331309699,1720210238048,-381.937717,0.00015,2]
[331309700,1720210238058,-381.937717,0.00015,2]
[331309701,1720210238067,-381.937717,0.00015,2]
[331309702,1720210238079,-381.937717,0.00015,2]
[331309703,1720210238090,-1000.0,0.00015196,2]
[331309704,1720210238100,-1342.0604415,0.00015479,2]
[331309705,1720210238110,-633.12,0.00015938,2]
[331309706,1720210238122,-159.01,0.00015976,2]
[331309707,1720210238132,-151.0,0.00015985,2]
[331309708,1720210238143,-151.0,0.00015985,2]